fUSD/lending_fUSD_20260408
["ID","MTS","AMOUNT","RATE_DAILY","PERIOD"]
[420018179,1775619214485,-500.0,0.00011578,2]
[420018180,1775619214521,-500.0,0.00011578,2]
[420018181,1775619214928,-500.0,0.00011578,2]
[420018182,1775619214963,-500.0,0.00011578,2]
[420018183,1775619214998,-500.0,0.00011578,2]
[420018184,1775619215035,-500.0,0.00011578,2]
[420018185,1775619215073,-500.0,0.00011578,2]
[420018186,1775619215111,-500.0,0.00011578,2]
[420018187,1775619215149,-500.0,0.00011578,2]
[420018188,1775619215186,-500.0,0.00011578,2]
[420018189,1775619215223,-500.0,0.00011578,2]
[420018190,1775619215259,-500.0,0.00011578,2]
[420018191,1775619245329,-339.0,0.00011,2]
[420018192,1775619245373,-3789.01,0.000112,3]
[420018193,1775619248078,-1743.99,0.000112,3]
[420018194,1775619248118,-300.0,0.00011399,2]
[420018195,1775619248157,-379.03,0.000114,5]
[420018196,1775619251384,-4846.04,0.000114,5]
[420018197,1775619260825,-307.93,0.000114,5]
[420018198,1775619275338,1000.0,0.0001151,2]
[420018199,1775619290718,8384.15,0.00011013,2]
[420018200,1775619326654,-500.0,0.00010704,2]
[420018201,1775619326685,-223.97,0.00011013,2]
[420018202,1775619326716,-311.0,0.00011013,2]
[420018203,1775619326749,-157.0,0.00011013,3]
[420018204,1775619326781,-177.04751018,0.00011473,2]
[420018205,1775619326813,-3459.35201067,0.00011479,2]
[420018206,1775619329450,-232.00571695,0.00011013,2]
[420018207,1775619329480,-343.2709583,0.00011479,2]
[420018208,1775619334482,-828.89476371,0.00011514,2]
[420018209,1775619335399,-244.04634271,0.00011514,2]
[420018210,1775619335421,-9511.91731458,0.00011514,2]
[420018212,1775619356303,276.12,0.00016,120]
[420018213,1775619482312,-150.0,0.00010959,2]
[420018214,1775619482342,-600.0,0.00010959,2]
[420018215,1775619482371,-195.0,0.00010959,2]
[420018216,1775619482401,-310.0,0.00010959,2]
[420018217,1775619482432,-156.0,0.00011013,3]
[420018218,1775619482461,-600.0,0.00011112,2]
[420018219,1775619482491,-587.67990152,0.00011112,2]
[420018220,1775619482518,-488.9,0.00011176,2]
[420018221,1775619482685,-3824.85019696,0.00011455,2]
[420018222,1775619482721,-10000.01,0.00011455,2]
[420018223,1775619482735,-2526.99589384,0.00011455,2]
[420018224,1775619482746,-7473.01410616,0.00011479,2]
[420018225,1775619488533,-10000.01,0.00011479,2]
[420018226,1775619488551,-5906.21589566,0.00011479,2]
[420018227,1775619488561,-250.0,0.00011479,2]
[420018228,1775619488570,-2500.0,0.00011479,2]
[420018229,1775619488580,-1343.79410434,0.00011479,2]
[420018230,1775619488597,-10000.01,0.00011479,2]
[420018231,1775619523153,-4467.0,0.000112,3]
[420018232,1775619523193,-1066.01,0.000114,5]
[420018233,1775619523389,-4466.99,0.000114,5]
[420018234,1775619523430,-1066.03,0.00011479,2]
[420018235,1775619525961,-3835.18025143,0.00011479,2]
[420018236,1775619525986,-2329.64949714,0.00011479,2]
[420018237,1775619528973,-10000.01,0.00011479,2]
[420018238,1775619532290,-10000.01,0.00011479,2]
[420018239,1775619532511,-1691.81609566,0.00011479,2]
[420018240,1775619532543,-2500.0,0.00011479,2]
[420018241,1775619545135,248.5,0.00016,120]
[420018242,1775619548725,155.0,0.00011479,2]
[420018243,1775619607678,1461.37780868,0.00011479,2]
[420018244,1775619607708,3779.27024731,0.00011479,2]
[420018245,1775619668017,2425.2951,0.00011479,2]
[420018246,1775619725964,1000.0,0.000161,120]
[420018247,1775619732075,179.44,8.549e-05,2]
[420018248,1775619732297,179.44,0.00010686,2]
[420018249,1775619735768,223.65,0.00016,120]
[420018250,1775619754893,800.0,0.000161,120]
[420018251,1775619767355,883.32664114,0.000161,120]
[420018252,1775619788123,3436.56465269,0.00011479,2]
[420018253,1775619788150,6563.43534731,0.00011479,2]
[420018254,1775619805938,3436.57465269,0.00011479,2]
[420018255,1775619807683,10000.01,0.00011479,2]
[420018256,1775619807710,10000.01,0.00011479,2]
[420018257,1775619815255,-284.83791045,0.00011479,2]
[420018258,1775619825595,-300.0,0.00011499,2]
[420018259,1775619825626,-300.0,0.00011499,2]
[420018260,1775619825658,-300.0,0.00011499,2]
[420018261,1775619825689,-319.0,0.00011499,2]
[420018262,1775619832885,-0.01,0.000115,2]
[420018263,1775619835586,-0.02,0.000115,2]
[420018264,1775619838565,-0.04,0.000115,2]
[420018265,1775619841567,-0.08,0.000115,2]
[420018266,1775619841669,-5985.23219132,0.000115,2]
[420018267,1775619860254,-4014.61780868,0.000115,2]
[420018268,1775619860292,-319.0,0.000115,2]
[420018269,1775619862786,171.0,6.952e-05,2]
[420018270,1775619863047,156.0,6.952e-05,2]
[420018271,1775619863505,156.0,6.952e-05,2]
[420018272,1775619863764,156.0,6.952e-05,2]
[420018273,1775619864014,156.0,6.952e-05,2]
[420018274,1775619864263,156.0,6.952e-05,2]
[420018275,1775619864562,156.0,6.952e-05,2]
[420018276,1775619864820,156.0,6.952e-05,2]
[420018277,1775619865080,69.77438264,6.952e-05,2]
[420018278,1775619865113,86.22561736,6.952e-05,2]
[420018279,1775619866275,156.0,6.952e-05,2]
[420018280,1775619866319,156.0,6.952e-05,2]
[420018281,1775619866361,156.0,6.952e-05,2]
[420018282,1775619866460,156.0,6.952e-05,2]
[420018283,1775619866690,156.0,6.952e-05,2]
[420018284,1775619866746,156.0,6.952e-05,2]
[420018285,1775619866872,156.0,6.952e-05,2]
[420018286,1775619867126,156.0,6.952e-05,2]
[420018287,1775619867856,156.0,6.952e-05,2]
[420018288,1775619868001,156.0,6.952e-05,2]
[420018289,1775619868261,156.0,6.952e-05,2]
[420018290,1775619868518,156.0,6.952e-05,2]
[420018291,1775619868772,156.0,6.952e-05,2]
[420018292,1775619869029,156.0,6.952e-05,2]
[420018293,1775619869963,167.0,6.815e-05,2]
[420018294,1775619870247,163.0,6.815e-05,2]
[420018295,1775619870491,163.0,6.815e-05,2]
[420018296,1775619870739,163.0,6.815e-05,2]
[420018297,1775619870990,163.0,6.815e-05,2]
[420018298,1775619871266,163.0,6.815e-05,2]
[420018299,1775619871544,163.0,6.815e-05,2]
[420018300,1775619871786,163.0,6.815e-05,2]
[420018301,1775619877690,7132.01,0.00011444,2]
[420018302,1775619895578,8299.99,0.00011387,2]
[420018303,1775619913771,1700.02,0.0001071,2]
[420018304,1775619913798,10000.01,0.0001071,2]
[420018305,1775619913825,10000.01,0.0001071,2]
[420018306,1775619913853,10000.01,0.0001071,2]
[420018307,1775619913880,10000.01,0.0001071,2]
[420018308,1775619913908,2189.46,0.0001071,2]
[420018309,1775619926633,201.29,0.00016,120]
[420018311,1775620117551,181.16,0.00016,120]
[420018312,1775620127482,-400.0,0.00011266,2]
[420018313,1775620127511,-315.0,0.00011266,2]
[420018314,1775620137945,318.26,0.00010628,2]
[420018315,1775620138142,318.26,0.00011219,2]
[420018316,1775620178518,7933.49,0.00010626,2]
[420018317,1775620178540,10000.01,0.00010626,2]
[420018318,1775620178564,10000.01,0.00010626,2]
[420018319,1775620178585,10000.01,0.00010626,2]
[420018320,1775620178607,8325.48,0.00010626,2]
[420018322,1775620207629,564.66,0.00010619,2]
[420018324,1775620231822,-400.0,0.00011271,2]
[420018326,1775620231832,-400.0,0.00011271,2]
[420018328,1775620231842,-315.0,0.00011271,2]
[420018329,1775620231851,-2766.78321118,0.00011272,2]
[420018330,1775620231863,-267.37735194,0.00011272,2]
[420018331,1775620231874,-771.24507589,0.00011272,2]
[420018332,1775620231886,-1194.59436099,0.00011272,2]
[420018333,1775620231896,-101.32050211,0.00011272,2]
[420018334,1775620231907,-254.14013485,0.00011272,2]
[420018335,1775620231918,-244.53936304,0.00011272,2]
[420018336,1775620231928,-125.44995695,0.00011272,2]
[420018337,1775620231939,-124.55004305,0.00011272,2]
[420018338,1775620231949,-150.0,0.00011272,2]
[420018339,1775620231959,-655.300005,0.00011273,2]
[420018340,1775620231971,-400.0,0.00011275,2]
[420018341,1775620231980,-400.0,0.00011275,2]
[420018342,1775620231990,-289.74,0.00011275,2]
[420018343,1775620232001,-150.0,0.00011275,2]
[420018344,1775620232011,-150.39907194,0.00011275,2]
[420018345,1775620232021,-104.08983352,0.00011334,2]
[420018346,1775620232121,-99.36709635,0.00011334,2]
[420018348,1775620232131,-1200.0,0.00011343,2]
[420018350,1775620232140,-300.0,0.00011343,2]
[420018352,1775620232150,-35.99778362,0.00011343,2]
[420018354,1775620232162,-264.00221638,0.00011343,2]
[420018357,1775620232172,-588.40998376,0.00011343,3]
[420018358,1775620232183,-424.84285358,0.00011343,3]
[420018359,1775620232196,-82.9876475,0.00011343,3]
[420018360,1775620232206,-1096.24048484,0.00011343,3]
[420018361,1775620232216,-1965.28730358,0.00011344,2]
[420018362,1775620232227,-4212.56134968,0.00011344,2]
[420018363,1775620232240,-1632.70955247,0.00011344,2]
[420018364,1775620232252,-257.8752,0.00011344,2]
[420018365,1775620232264,-2800.96661148,0.00011344,2]
[420018366,1775620232276,-16903.55858077,0.00011344,2]
[420018367,1775620232288,-295843.07106554,0.00011344,2]
[420018368,1775620232301,-126456.37918052,0.00011344,2]
[420018369,1775620232313,-95770.23805006,0.00011344,2]
[420018370,1775620232325,-1309.68764366,0.00011344,2]
[420018371,1775620232336,-326.03172292,0.00011344,2]
[420018372,1775620232349,-3016.37873719,0.00011344,2]
[420018373,1775620232360,-2993.88054873,0.00011344,2]
[420018380,1775620237567,1109.87,0.00010643,2]
[420018381,1775620237592,490.13,0.00010643,2]
[420018382,1775620238117,-946511.3744534,0.00011344,2]
[420018383,1775620238127,-150.0,0.00011443,2]
[420018384,1775620238137,-195.0,0.00011444,2]
[420018385,1775620238146,-74921.9284215,0.00011444,2]
[420018386,1775620238157,-151.0,0.00011444,2]
[420018387,1775620238167,-453.36192283,0.00011444,2]
[420018388,1775620238177,-1000.0,0.00011472,2]
[420018389,1775620238187,-10144.2676,0.00011479,2]
[420018390,1775620238196,-7993.00590435,0.00011479,2]
[420018391,1775620238206,-5278.00743474,0.00011479,2]
[420018392,1775620238216,-21349.29130679,0.00011479,2]
[420018393,1775620238226,-3968.09,0.00011507,2]
[420018394,1775620238235,-449.5976,0.00011562,2]
[420018395,1775620238245,-500.0,0.00011572,2]
[420018396,1775620238255,-151.0,0.00011572,2]
[420018397,1775620238264,-151.0,0.00011572,2]
[420018398,1775620238274,-500.0,0.00011572,2]
[420018399,1775620238284,-500.0,0.00011572,2]
[420018400,1775620238293,-200.0,0.00011572,2]
[420018401,1775620238303,-151.63797366,0.00011572,2]
[420018402,1775620238313,-151.0,0.00011572,2]
[420018403,1775620238323,-151.0,0.00011572,2]
[420018404,1775620238333,-151.0,0.00011572,2]
[420018405,1775620238343,-151.0,0.00011572,2]
[420018406,1775620238352,-151.0,0.00011572,2]
[420018407,1775620238362,-153.43679859,0.00011572,2]
[420018408,1775620238372,-1199.20597015,0.00011572,2]
[420018409,1775620238382,-500.0,0.00011573,2]
[420018410,1775620238392,-500.0,0.00011573,2]
[420018411,1775620238401,-500.0,0.00011573,2]
[420018413,1775620238410,-502.49539828,0.00011573,2]
[420018415,1775620238419,-500.0,0.00011573,2]
[420018417,1775620238430,-169.66281329,0.00011573,2]
[420018419,1775620238440,-500.0,0.00011573,2]
[420018421,1775620238449,-500.0,0.00011573,2]
[420018423,1775620238458,-500.54232895,0.00011573,2]
[420018425,1775620238468,-500.0,0.00011573,2]
[420018427,1775620238478,-500.0,0.00011573,2]
[420018429,1775620238487,-500.0,0.00011573,2]
[420018431,1775620238496,-500.0,0.00011576,2]
[420018433,1775620238506,-189.53634954,0.00011576,2]
[420018435,1775620238515,-500.0,0.00011576,2]
[420018437,1775620238524,-351.91691528,0.00011576,2]
[420018438,1775620238534,-500.0,0.00011576,2]
[420018439,1775620238543,-500.0,0.00011576,2]
[420018440,1775620238553,-500.0,0.00011576,2]
[420018441,1775620238563,-500.0,0.00011576,2]
[420018442,1775620238572,-500.0,0.00011576,2]
[420018443,1775620238581,-500.0,0.00011576,2]
[420018444,1775620238591,-500.0,0.00011576,2]
[420018445,1775620238600,-500.0,0.00011576,2]
[420018446,1775620238610,-500.0,0.00011576,2]
[420018447,1775620238619,-500.0,0.00011576,2]
[420018448,1775620238628,-500.0,0.00011576,2]
[420018449,1775620238638,-500.0,0.00011576,2]
[420018450,1775620238647,-500.0,0.00011576,2]
[420018451,1775620238657,-500.0,0.00011576,2]
[420018452,1775620238666,-500.0,0.00011576,2]
[420018453,1775620238676,-500.0,0.00011576,2]
[420018454,1775620238686,-500.0,0.00011576,2]
[420018455,1775620238695,-500.0,0.00011576,2]
[420018456,1775620238704,-500.0,0.00011576,2]
[420018457,1775620238713,-500.0,0.00011576,2]
[420018458,1775620238722,-500.0,0.00011576,2]
[420018459,1775620238732,-500.0,0.00011576,2]
[420018460,1775620238742,-500.0,0.00011576,2]
[420018461,1775620238751,-500.0,0.00011576,2]
[420018462,1775620238761,-500.0,0.00011576,2]
[420018463,1775620238770,-500.0,0.00011576,2]
[420018464,1775620238780,-500.0,0.00011576,2]
[420018465,1775620238789,-500.0,0.00011576,2]
[420018466,1775620238798,-500.0,0.00011576,2]
[420018467,1775620238808,-500.0,0.00011576,2]
[420018468,1775620238817,-500.0,0.00011576,2]
[420018469,1775620238826,-500.0,0.00011576,2]
[420018470,1775620238836,-500.0,0.00011576,2]
[420018471,1775620238846,-500.0,0.00011576,2]
[420018472,1775620238855,-500.0,0.00011576,2]
[420018473,1775620238864,-500.0,0.00011576,2]
[420018474,1775620238874,-500.0,0.00011576,2]
[420018475,1775620238883,-500.0,0.00011576,2]
[420018476,1775620238893,-500.0,0.00011576,2]
[420018477,1775620238902,-500.0,0.00011576,2]
[420018478,1775620238912,-500.0,0.00011576,2]
[420018479,1775620238922,-500.0,0.00011576,2]
[420018480,1775620238931,-196.04979415,0.00011576,2]
[420018481,1775620238941,-500.0,0.00011576,2]
[420018482,1775620238950,-500.0,0.00011576,2]
[420018483,1775620238959,-500.0,0.00011576,2]
[420018484,1775620238969,-500.0,0.00011576,2]
[420018485,1775620238979,-500.0,0.00011576,2]
[420018486,1775620238989,-500.0,0.00011576,2]
[420018487,1775620238998,-500.0,0.00011576,2]
[420018488,1775620239008,-500.0,0.00011576,2]
[420018489,1775620239018,-500.0,0.00011576,2]
[420018490,1775620239027,-500.0,0.00011576,2]
[420018491,1775620239037,-500.0,0.00011576,2]
[420018492,1775620239046,-500.0,0.00011576,2]
[420018493,1775620239454,-500.0,0.00011576,2]
[420018494,1775620239464,-500.0,0.00011576,2]
[420018495,1775620239473,-500.0,0.00011576,2]
[420018496,1775620239483,-500.0,0.00011576,2]
[420018497,1775620239492,-500.0,0.00011576,2]
[420018498,1775620239501,-200.0,0.00011576,2]
[420018499,1775620239511,-500.0,0.00011576,2]
[420018500,1775620239520,-500.0,0.00011576,2]
[420018501,1775620239530,-500.0,0.00011576,2]
[420018502,1775620239540,-500.0,0.00011576,2]
[420018503,1775620239550,-500.0,0.00011576,2]
[420018504,1775620239559,-500.0,0.00011576,2]
[420018505,1775620239570,-500.0,0.00011576,2]
[420018506,1775620239579,-500.0,0.00011576,2]
[420018507,1775620239588,-500.0,0.00011576,2]
[420018508,1775620239598,-500.0,0.00011576,2]
[420018509,1775620239607,-350.0,0.00011576,2]
[420018510,1775620239616,-500.0,0.00011576,2]
[420018511,1775620239626,-500.0,0.00011576,2]
[420018512,1775620239636,-500.0,0.00011576,2]
[420018513,1775620239645,-500.0,0.00011576,2]
[420018514,1775620239655,-500.0,0.00011576,2]
[420018515,1775620239664,-1007.321709,0.00011577,2]
[420018516,1775620239674,-200.0,0.00011577,2]
[420018517,1775620239683,-629.56,0.00011578,2]
[420018518,1775620239692,-500.0,0.00011578,2]
[420018519,1775620239702,-200.0,0.00011578,2]
[420018520,1775620239711,-200.0,0.00011578,2]
[420018521,1775620239722,-500.0,0.00011578,2]
[420018522,1775620239731,-280.73152128,0.00011578,2]
[420018523,1775620239740,-197.51949262,0.00011578,2]
[420018524,1775620239749,-500.0,0.00011578,2]
[420018525,1775620239759,-500.0,0.00011578,2]
[420018526,1775620239768,-500.0,0.00011578,2]
[420018527,1775620239778,-500.0,0.00011578,2]
[420018528,1775620239788,-201.71626851,0.00011578,2]
[420018529,1775620239798,-493.21193106,0.00011578,2]
[420018530,1775620239808,-500.0,0.00011578,2]
[420018531,1775620239817,-327115.3585948,0.00011579,2]
[420018532,1775620239827,-200.0,0.00011579,2]
[420018533,1775620239836,-200.0,0.00011579,2]
[420018534,1775620239847,-316.66375546,0.00011585,2]
[420018535,1775620239856,-1000.0,0.00011586,2]
[420018536,1775620239866,-500.0,0.00011625,2]
[420018537,1775620239877,-500.0,0.00011625,2]
[420018538,1775620239886,-528.23575097,0.00011625,2]
[420018539,1775620239896,-500.0,0.00011625,2]
[420018540,1775620239906,-500.0,0.00011625,2]
[420018541,1775620239915,-500.0,0.00011625,2]
[420018542,1775620239924,-150.0,0.00011625,2]
[420018543,1775620239934,-500.0,0.00011625,2]
[420018544,1775620239944,-211.74732129,0.00011625,2]
[420018545,1775620239955,-500.0,0.00011625,2]
[420018546,1775620239965,-294.91635494,0.00011625,2]
[420018547,1775620239975,-1538.0,0.00011625,2]
[420018548,1775620239985,-1538.0,0.00011625,2]
[420018549,1775620239994,-1538.0,0.00011625,2]
[420018550,1775620240004,-1538.0,0.00011625,2]
[420018551,1775620240014,-1538.0,0.00011625,2]
[420018552,1775620240024,-1538.0,0.00011625,2]
[420018553,1775620240034,-1538.0,0.00011625,2]
[420018554,1775620240044,-1538.0,0.00011625,2]
[420018555,1775620240053,-1538.0,0.00011625,2]
[420018556,1775620240063,-1538.0,0.00011625,2]
[420018557,1775620240072,-1538.0,0.00011625,2]
[420018558,1775620240082,-1538.0,0.00011625,2]
[420018559,1775620240091,-1538.0,0.00011625,2]
[420018560,1775620240102,-1538.0,0.00011625,2]
[420018561,1775620240112,-1538.0,0.00011625,2]
[420018562,1775620240122,-1538.0,0.00011625,2]
[420018563,1775620240131,-1538.0,0.00011625,2]
[420018564,1775620240141,-1538.0,0.00011625,2]
[420018565,1775620240151,-1538.0,0.00011625,2]
[420018566,1775620240160,-1538.0,0.00011625,2]
[420018567,1775620240170,-1538.0,0.00011625,2]
[420018568,1775620240180,-1538.0,0.00011625,2]
[420018569,1775620240190,-1538.0,0.00011625,2]
[420018570,1775620240200,-1555.72513774,0.00011625,2]
[420018572,1775620240210,-152.7979958,0.00011625,2]
[420018574,1775620240220,-500.0,0.00011625,2]
[420018575,1775620240231,-500.0,0.00011625,2]
[420018576,1775620240241,-500.0,0.00011625,2]
[420018577,1775620240251,-500.0,0.00011625,2]
[420018578,1775620240261,-500.0,0.00011625,2]
[420018579,1775620240271,-520.29151548,0.00011625,2]
[420018580,1775620240281,-500.0,0.00011625,2]
[420018581,1775620240291,-500.0,0.00011625,2]
[420018582,1775620240300,-500.0,0.00011625,2]
[420018583,1775620240310,-500.0,0.00011625,2]
[420018584,1775620240319,-500.0,0.00011625,2]
[420018585,1775620240329,-500.0,0.00011625,2]
[420018586,1775620240338,-500.0,0.00011625,2]
[420018587,1775620240348,-500.0,0.00011625,2]
[420018588,1775620240358,-152.12238144,0.00011625,2]
[420018589,1775620240367,-500.0,0.00011625,2]
[420018590,1775620240376,-500.0,0.00011625,2]
[420018591,1775620240386,-500.0,0.00011625,2]
[420018592,1775620240396,-500.0,0.00011625,2]
[420018593,1775620240405,-500.0,0.00011625,2]
[420018594,1775620240415,-500.0,0.00011625,2]
[420018595,1775620240424,-500.0,0.00011625,2]
[420018596,1775620240434,-500.0,0.00011625,2]
[420018597,1775620240444,-500.0,0.00011625,2]
[420018598,1775620240454,-500.0,0.00011625,2]
[420018599,1775620240463,-500.0,0.00011625,2]
[420018600,1775620240473,-500.0,0.00011625,2]
[420018601,1775620240483,-345.51138736,0.00011625,2]
[420018602,1775620240492,-500.0,0.00011625,2]
[420018603,1775620240502,-500.0,0.00011625,2]
[420018604,1775620240512,-500.0,0.00011625,2]
[420018605,1775620240521,-500.0,0.00011625,2]
[420018606,1775620240531,-500.0,0.00011625,2]
[420018607,1775620240540,-500.0,0.00011625,2]
[420018608,1775620240550,-412.62015671,0.00011625,2]
[420018609,1775620240560,-500.0,0.00011625,2]
[420018610,1775620240569,-500.0,0.00011625,2]
[420018611,1775620240579,-500.0,0.00011625,2]
[420018612,1775620240589,-500.0,0.00011625,2]
[420018613,1775620240598,-500.0,0.00011625,2]
[420018614,1775620240608,-500.0,0.00011625,2]
[420018615,1775620240618,-500.0,0.00011625,2]
[420018616,1775620240628,-500.0,0.00011625,2]
[420018617,1775620240637,-500.0,0.00011625,2]
[420018618,1775620240647,-500.0,0.00011625,2]
[420018619,1775620240657,-500.0,0.00011625,2]
[420018620,1775620240666,-500.0,0.00011625,2]
[420018621,1775620240676,-500.0,0.00011625,2]
[420018622,1775620240686,-500.0,0.00011625,2]
[420018623,1775620240695,-500.0,0.00011625,2]
[420018624,1775620240705,-500.0,0.00011625,2]
[420018625,1775620240714,-500.0,0.00011625,2]
[420018626,1775620240724,-500.0,0.00011625,2]
[420018627,1775620240734,-500.0,0.00011625,2]
[420018628,1775620240745,-500.0,0.00011625,2]
[420018629,1775620240754,-500.0,0.00011625,2]
[420018630,1775620240764,-500.0,0.00011625,2]
[420018631,1775620240774,-500.0,0.00011625,2]
[420018632,1775620240783,-500.0,0.00011625,2]
[420018633,1775620240792,-500.0,0.00011625,2]
[420018634,1775620240801,-500.0,0.00011625,2]
[420018635,1775620240811,-500.0,0.00011625,2]
[420018636,1775620240820,-437.70476393,0.00011625,2]
[420018637,1775620240830,-500.0,0.00011625,2]
[420018638,1775620240839,-500.0,0.00011625,2]
[420018639,1775620240849,-500.0,0.00011625,2]
[420018640,1775620240858,-500.0,0.00011625,2]
[420018641,1775620240868,-500.0,0.00011625,2]
[420018642,1775620240878,-500.0,0.00011625,2]
[420018643,1775620240888,-500.0,0.00011625,2]
[420018644,1775620240898,-500.0,0.00011625,2]
[420018645,1775620240907,-500.0,0.00011625,2]
[420018646,1775620240917,-500.0,0.00011625,2]
[420018647,1775620240927,-500.0,0.00011625,2]
[420018648,1775620240937,-528.99978612,0.00011625,2]
[420018649,1775620240946,-500.0,0.00011625,2]
[420018650,1775620240958,-619.83324584,0.00011625,2]
[420018651,1775620240967,-500.0,0.00011625,2]
[420018652,1775620240977,-282.96950804,0.00011625,2]
[420018653,1775620240987,-527.98110075,0.00011625,2]
[420018654,1775620240996,-500.0,0.00011625,2]
[420018655,1775620241006,-150.0,0.00011625,2]
[420018656,1775620241015,-500.0,0.00011625,2]
[420018657,1775620241025,-272.94970253,0.00011625,2]
[420018658,1775620241034,-153.37566176,0.00011625,2]
[420018659,1775620241044,-151.0,0.00011636,2]
[420018660,1775620241054,-151.0,0.00011637,2]
[420018661,1775620241064,-182.85,0.00011677,2]
[420018662,1775620241073,-319.99,0.00011681,2]
[420018663,1775620241084,-151.0,0.00011683,2]
[420018664,1775620241094,-151.0,0.00011683,2]
[420018665,1775620241105,-151.0,0.00011683,2]
[420018666,1775620241115,-400.0,0.00011684,2]
[420018667,1775620241126,-254.18,0.00011686,2]
[420018668,1775620241135,-176.0,0.00011689,2]
[420018669,1775620241146,-310.66,0.00011691,2]
[420018670,1775620241156,-152.26359691,0.00011699,2]
[420018671,1775620241166,-1925.0,0.00011707,2]
[420018672,1775620241176,-324.0,0.00011712,2]
[420018673,1775620241395,-430.0,0.00011713,2]
[420018674,1775620241405,-1773.0,0.00011731,2]
[420018675,1775620241415,-190.0,0.00011736,2]
[420018676,1775620241425,-815.0,0.00011754,2]
[420018677,1775620241436,-1814.0,0.00011765,2]
[420018678,1775620241446,-163.0,0.00011767,2]
[420018679,1775620241456,-166.66,0.00011788,2]
[420018680,1775620241466,-1933.0,0.00011789,2]
[420018681,1775620241476,-340.0,0.0001179,2]
[420018682,1775620241487,-277.0,0.00011791,2]
[420018683,1775620241497,-625.53967218,0.00011797,2]
[420018684,1775620241506,-318.26,0.00011809,2]
[420018685,1775620241516,-378.0,0.00011812,2]
[420018686,1775620241527,-410.0,0.00011813,2]
[420018687,1775620241537,-792.0,0.00011824,2]
[420018688,1775620241547,-250.83754936,0.00011836,2]
[420018689,1775620241557,-238.0,0.00011837,2]
[420018690,1775620241566,-1720.0,0.00011841,2]
[420018691,1775620241575,-1234.0,0.00011847,2]
[420018692,1775620241584,-629.56,0.00011852,2]
[420018693,1775620241594,-500.0,0.00011852,2]
[420018694,1775620241603,-274.0,0.0001186,2]
[420018695,1775620241613,-1005.0,0.00011864,2]
[420018696,1775620241623,-461.0,0.00011871,2]
[420018697,1775620241632,-500.0,0.0001189,2]
[420018698,1775620241641,-1600.0,0.000119,4]
[420018699,1775620241651,-430.0,0.00011918,2]
[420018700,1775620241660,-361.48,0.00011927,2]
[420018701,1775620241670,-400.0,0.00011953,2]
[420018702,1775620241679,-241.46,0.00011953,2]
[420018703,1775620241688,-400.0,0.00011957,2]
[420018704,1775620241698,-400.0,0.00011957,2]
[420018705,1775620241708,-1096.24048485,0.00011969,3]
[420018706,1775620241717,-7993.0059043,0.0001197,2]
[420018707,1775620241726,-21349.29130678,0.0001197,2]
[420018708,1775620241735,-1600.0,0.00011974,2]
[420018709,1775620241745,-215.08307443,0.00012052,2]
[420018710,1775620241754,-319.41374679,0.00012052,2]
[420018711,1775620241764,-342.26673878,0.00012052,2]